fUST/lending_fUST_20240423
["ID","MTS","AMOUNT","RATE_DAILY","PERIOD"]
[323266512,1713858639906,-1282.71,0.00021917,2]
[323266514,1713858639915,-500.0,0.00021917,2]
[323266516,1713858639924,-500.0,0.00021917,2]
[323266518,1713858639933,-500.0,0.00021917,2]
[323266520,1713858639942,-241.80291807,0.00021917,2]
[323266522,1713858639951,-500.0,0.00021917,2]
[323266524,1713858639960,-500.0,0.00021917,2]
[323266526,1713858639970,-500.0,0.00021917,2]
[323266528,1713858639979,-500.0,0.00021917,2]
[323266531,1713858639989,-500.0,0.00021917,2]
[323266532,1713858639998,-500.07001818,0.00021917,2]
[323266534,1713858640007,-605.55037946,0.00021917,2]
[323266536,1713858640016,-1195.12,0.00021917,2]
[323266539,1713858640026,-500.0,0.00021917,2]
[323266541,1713858640035,-558.84,0.00021917,2]
[323266543,1713858640045,-542.67199493,0.00021917,2]
[323266545,1713858640055,-500.0,0.00021917,2]
[323266547,1713858640065,-500.0,0.00021917,2]
[323266549,1713858640075,-500.0,0.00021917,2]
[323266551,1713858640084,-500.0,0.00021917,2]
[323266553,1713858640093,-500.0,0.00021917,2]
[323266555,1713858640103,-500.0,0.00021917,2]
[323266557,1713858640112,-500.0,0.00021917,2]
[323266559,1713858640121,-500.0,0.00021917,2]
[323266562,1713858640130,-500.0,0.00021917,2]
[323266564,1713858640139,-500.0,0.00021917,2]
[323266567,1713858640149,-500.0,0.00021917,2]
[323266570,1713858640158,-500.0,0.00021917,2]
[323266573,1713858640167,-528.80425813,0.00021917,2]
[323266575,1713858640177,-500.0,0.00021917,2]
[323266578,1713858640187,-279.80392464,0.00021917,2]
[323266580,1713858640196,-500.0,0.00021917,2]
[323266582,1713858640205,-500.0,0.00021917,2]
[323266584,1713858640215,-500.0,0.00021917,2]
[323266586,1713858640224,-527.48539434,0.00021917,2]
[323266588,1713858640233,-500.0,0.00021917,2]
[323266591,1713858640243,-500.0,0.00021917,2]
[323266593,1713858640252,-500.0,0.00021917,2]
[323266595,1713858640261,-500.0,0.00021917,2]
[323266597,1713858640271,-500.0,0.00021917,2]
[323266599,1713858640280,-500.0,0.00021917,2]
[323266601,1713858640289,-835.48,0.00021917,2]
[323266603,1713858640298,-500.0,0.00021917,2]
[323266605,1713858640307,-500.0,0.00021917,2]
[323266607,1713858640316,-500.0,0.00021917,2]
[323266609,1713858640326,-500.0,0.00021917,2]
[323266611,1713858640335,-500.0,0.00021917,2]
[323266613,1713858640344,-500.0,0.00021917,2]
[323266614,1713858640353,-689.47,0.00021917,2]
[323266616,1713858640363,-500.0,0.00021917,2]
[323266618,1713858640372,-500.0,0.00021917,2]
[323266620,1713858640382,-500.0,0.00021917,2]
[323266623,1713858640391,-500.0,0.00021917,2]
[323266625,1713858640401,-500.0,0.00021917,2]
[323266626,1713858640410,-500.0,0.00021917,2]
[323266628,1713858640419,-567.18569427,0.00021917,2]
[323266631,1713858640429,-500.0,0.00021917,2]
[323266633,1713858640438,-521.66796182,0.00021917,2]
[323266635,1713858640448,-500.0,0.00021917,2]
[323266637,1713858640457,-500.0,0.00021917,2]
[323266638,1713858640466,-500.0,0.00021917,2]
[323266640,1713858640476,-500.0,0.00021917,2]
[323266642,1713858640486,-500.0,0.00021917,2]
[323266644,1713858640497,-500.0,0.00021917,2]
[323266647,1713858640508,-500.0,0.00021917,2]
[323266649,1713858640517,-500.0,0.00021917,2]
[323266651,1713858640526,-500.0,0.00021917,2]
[323266652,1713858640535,-500.0,0.00021917,2]
[323266654,1713858640544,-500.0,0.00021917,2]
[323266656,1713858640554,-500.0,0.00021917,2]
[323266658,1713858640562,-500.0,0.00021917,2]
[323266660,1713858640571,-500.0,0.00021917,2]
[323266662,1713858640580,-500.0,0.00021917,2]
[323266664,1713858640589,-500.0,0.00021917,2]
[323266666,1713858640599,-658.05,0.00021917,2]
[323266668,1713858640608,-504.22179746,0.00021917,2]
[323266670,1713858640618,-500.0,0.00021917,2]
[323266672,1713858640626,-500.0,0.00021917,2]
[323266674,1713858640635,-502.72461328,0.00021917,2]
[323266676,1713858640645,-500.0,0.00021917,2]
[323266678,1713858640654,-500.0,0.00021917,2]
[323266680,1713858640663,-500.0,0.00021917,2]
[323266682,1713858640673,-993.09,0.00021917,2]
[323266684,1713858640686,-500.0,0.00021917,2]
[323266686,1713858640695,-504.06236159,0.00021917,2]
[323266688,1713858640704,-500.0,0.00021917,2]
[323266690,1713858640713,-502.51233475,0.00021917,2]
[323266692,1713858640722,-705.51,0.00021917,2]
[323266694,1713858640731,-500.0,0.00021917,2]
[323266696,1713858640740,-501.88929148,0.00021917,2]
[323266698,1713858640750,-527.86168637,0.00021917,2]
[323266700,1713858640761,-500.0,0.00021917,2]
[323266702,1713858640771,-500.0,0.00021917,2]
[323266704,1713858640780,-500.0,0.00021917,2]
[323266706,1713858640789,-500.0,0.00021917,2]
[323266708,1713858640799,-500.0,0.00021917,2]
[323266710,1713858640808,-1036.83,0.00021917,2]
[323266712,1713858640817,-500.0,0.00021917,2]
[323266714,1713858640826,-500.0,0.00021917,2]
[323266716,1713858640835,-500.0,0.00021917,2]
[323266718,1713858640844,-500.0,0.00021917,2]
[323266720,1713858640854,-500.0,0.00021917,2]
[323266722,1713858640863,-500.0,0.00021917,2]
[323266724,1713858640872,-500.0,0.00021917,2]
[323266726,1713858640881,-500.0,0.00021917,2]
[323266728,1713858640890,-500.0,0.00021917,2]
[323266730,1713858640900,-545.35926924,0.00021917,2]
[323266732,1713858640909,-500.0,0.00021917,2]
[323266734,1713858640918,-500.0,0.00021917,2]
[323266735,1713858640927,-500.0,0.00021917,2]
[323266737,1713858640937,-500.0,0.00021917,2]
[323266739,1713858640946,-500.0,0.00021917,2]
[323266741,1713858640955,-500.0,0.00021917,2]
[323266744,1713858640965,-500.0,0.00021917,2]
[323266746,1713858640973,-500.0,0.00021917,2]
[323266748,1713858640983,-500.0,0.00021917,2]
[323266749,1713858640992,-612.31,0.00021917,2]
[323266751,1713858641001,-636.79,0.00021917,2]
[323266753,1713858641010,-652.97,0.00021917,2]
[323266755,1713858641019,-500.0,0.00021917,2]
[323266757,1713858641028,-500.0,0.00021917,2]
[323266759,1713858641037,-500.0,0.00021917,2]
[323266761,1713858641046,-259.25988984,0.00021917,2]
[323266763,1713858641055,-500.0,0.00021917,2]
[323266765,1713858641064,-500.0,0.00021917,2]
[323266767,1713858641074,-500.0,0.00021917,2]
[323266769,1713858641083,-500.0,0.00021917,2]
[323266771,1713858641092,-500.0,0.00021917,2]
[323266773,1713858641101,-500.0,0.00021917,2]
[323266775,1713858641110,-500.0,0.00021917,2]
[323266777,1713858641119,-682.12,0.00021917,2]
[323266779,1713858641128,-505.59215273,0.00021917,2]
[323266781,1713858641136,-500.0,0.00021917,2]
[323266783,1713858641146,-503.24888842,0.00021917,2]
[323266785,1713858641155,-572.39675591,0.00021917,2]
[323266787,1713858641164,-569.9,0.00021917,2]
[323266789,1713858641172,-500.76773782,0.00021917,2]
[323266791,1713858641181,-500.0,0.00021917,2]
[323266793,1713858641190,-710.43,0.00021917,2]
[323266795,1713858641199,-569.78584518,0.00021917,2]
[323266797,1713858641208,-500.0,0.00021917,2]
[323266799,1713858641217,-500.0,0.00021917,2]
[323266801,1713858641226,-943.23,0.00021917,2]
[323266803,1713858641235,-504.51431478,0.00021917,2]
[323266805,1713858641244,-500.0,0.00021917,2]
[323266807,1713858641253,-500.0,0.00021917,2]
[323266809,1713858641262,-2108.12,0.00021917,2]
[323266811,1713858641271,-519.72911189,0.00021917,2]
[323266813,1713858641279,-500.0,0.00021917,2]
[323266815,1713858641289,-500.0,0.00021917,2]
[323266817,1713858641297,-500.0,0.00021917,2]
[323266819,1713858641306,-1669.69,0.00021917,2]
[323266821,1713858641315,-621.45917348,0.00021917,2]
[323266823,1713858641324,-526.87449858,0.00021917,2]
[323266825,1713858641333,-500.0,0.00021917,2]
[323266827,1713858641342,-500.0,0.00021917,2]
[323266829,1713858641351,-500.0,0.00021917,2]
[323266831,1713858641360,-500.0,0.00021917,2]
[323266833,1713858641369,-740.06,0.00021917,2]
[323266835,1713858641378,-501.32321952,0.00021917,2]
[323266837,1713858641387,-500.0,0.00021917,2]
[323266839,1713858641398,-500.0,0.00021917,2]
[323266841,1713858641407,-500.0,0.00021917,2]
[323266843,1713858641416,-500.0,0.00021917,2]
[323266845,1713858641425,-500.0,0.00021917,2]
[323266846,1713858641434,-500.0,0.00021917,2]
[323266848,1713858641443,-500.0,0.00021917,2]
[323266850,1713858641452,-500.0,0.00021917,2]
[323266851,1713858641461,-500.0,0.00021917,2]
[323266852,1713858641470,-500.0,0.00021917,2]
[323266853,1713858641480,-500.0,0.00021917,2]
[323266854,1713858641489,-500.0,0.00021917,2]
[323266855,1713858641498,-685.36,0.00021917,2]
[323266856,1713858641508,-500.0,0.00021917,2]
[323266857,1713858641517,-500.0,0.00021917,2]
[323266858,1713858641526,-500.0,0.00021917,2]
[323266859,1713858641535,-500.0,0.00021917,2]
[323266860,1713858641545,-613.42850891,0.00021917,2]
[323266861,1713858641554,-500.0,0.00021917,2]
[323266862,1713858641655,-500.0,0.00021917,2]
[323266863,1713858641665,-500.0,0.00021917,2]
[323266864,1713858641676,-1123.15,0.00021917,2]
[323266865,1713858641688,-500.0,0.00021917,2]
[323266866,1713858641697,-301.35554364,0.00021917,2]
[323266867,1713858641706,-18549.65128781,0.00021917,2]
[323266868,1713858641896,-2585.77782849,0.00021917,2]
[323266880,1713858642308,-264.82,0.00019978,3]
[323266882,1713858642317,-529.64,0.00021348,3]
[323266884,1713858642326,-1185.68133062,0.00021917,2]
[323266896,1713858642486,-564.63955308,0.00021917,2]
[323266897,1713858642495,-500.0,0.00021917,2]
[323266898,1713858642505,-227.69044692,0.00021917,2]
[323266899,1713858642521,-6.15595199,0.00021917,2]
[323266900,1713858642530,-500.0,0.00021917,2]
[323266902,1713858642539,-255.86394292,0.00021917,2]
[323266904,1713858642549,-500.0,0.00021917,2]
[323266906,1713858642558,-500.0,0.00021917,2]
[323266908,1713858642568,-500.0,0.00021917,2]
[323266910,1713858642577,-500.0,0.00021917,2]
[323266912,1713858642586,-500.0,0.00021917,2]
[323266914,1713858642595,-1072.71,0.00021917,2]
[323266916,1713858642605,-500.0,0.00021917,2]
[323266918,1713858642615,-500.0,0.00021917,2]
[323266920,1713858642624,-769.1,0.00021917,2]
[323266922,1713858642635,-539.61,0.00021917,2]
[323266924,1713858642645,-567.91,0.00021917,2]
[323266926,1713858642653,-1889.61,0.00021917,2]
[323266928,1713858642663,-500.0,0.00021917,2]
[323266930,1713858642673,-2756.42,0.00021917,2]
[323266932,1713858642686,-500.0,0.00021917,2]
[323266934,1713858642695,-500.0,0.00021917,2]
[323266936,1713858642705,-411.60022479,0.00021917,2]
[323266938,1713858642714,-500.0,0.00021917,2]
[323266940,1713858642725,-500.0,0.00021917,2]
[323266942,1713858642734,-1820.53,0.00021917,2]
[323266944,1713858642744,-500.0,0.00021917,2]
[323266946,1713858642753,-500.0,0.00021917,2]
[323266948,1713858642765,-1601.17,0.00021917,2]
[323266951,1713858642775,-500.0,0.00021917,2]
[323266953,1713858642784,-500.0,0.00021917,2]
[323266955,1713858642793,-500.0,0.00021917,2]
[323266957,1713858642802,-500.0,0.00021917,2]
[323266959,1713858642811,-500.0,0.00021917,2]
[323266961,1713858642819,-500.0,0.00021917,2]
[323266962,1713858642828,-530.79,0.00021917,2]
[323266964,1713858642839,-500.0,0.00021917,2]
[323266966,1713858642848,-500.0,0.00021917,2]
[323266967,1713858642858,-500.0,0.00021917,2]
[323266968,1713858642868,-509.53826186,0.00021917,2]
[323266969,1713858642878,-500.0,0.00021917,2]
[323266970,1713858642887,-269.2981657,0.00021917,2]
[323266971,1713858642898,-501.6,0.00021917,2]
[323266972,1713858642908,-500.0,0.00021917,2]
[323266973,1713858642917,-500.0,0.00021917,2]
[323266974,1713858642928,-500.0,0.00021917,2]
[323266975,1713858642938,-324.38405192,0.00021917,2]
[323267052,1713858644011,-473.53041386,0.00021347,2]
[323267053,1713858644020,-166.9469602,0.00021917,2]
[323267054,1713858644029,-131.1940487,0.00021917,2]
[323267055,1713858644318,-368.8059513,0.00021917,2]
[323267056,1713858644327,-500.0,0.00021917,2]
[323267057,1713858644336,-500.0,0.00021917,2]
[323267058,1713858644345,-579.79565403,0.00021917,2]
[323267059,1713858644353,-500.0,0.00021917,2]
[323267060,1713858644363,-2270.63,0.00021917,2]
[323267061,1713858644371,-500.0,0.00021917,2]
[323267062,1713858644381,-2360.19,0.00021917,2]
[323267063,1713858644389,-500.0,0.00021917,2]
[323267064,1713858644400,-500.0,0.00021917,2]
[323267065,1713858644409,-500.0,0.00021917,2]
[323267066,1713858644417,-500.0,0.00021917,2]
[323267067,1713858644427,-500.0,0.00021917,2]
[323267068,1713858644436,-500.0,0.00021917,2]
[323267069,1713858644445,-9881.24508088,0.00021917,2]
[323267098,1713858647297,-1322.8,0.00021917,2]
[323267797,1713858911639,870.999999,0.00022,120]
[323267801,1713859144731,150.5,0.00024921,35]
[323267802,1713859145127,150.5,0.00024911,35]
[323267803,1713859145741,150.5,0.00024901,35]
[323267814,1713859385964,150.5,0.00024373,35]
[323267815,1713859386604,150.5,0.00024363,35]
[323267816,1713859387184,150.5,0.00024353,35]
[323267828,1713859504762,150.5,0.000241,35]
[323267829,1713859505349,150.5,0.0002409,35]
[323267830,1713859505915,150.5,0.000241,35]
[323267831,1713859505976,150.5,0.0002408,35]
[323267832,1713859506519,150.5,0.0002409,35]
[323267833,1713859507112,261.57,0.0002408,35]
[323267834,1713859531174,-247.22010741,0.00016481,2]
[323267835,1713859531195,-154.82968734,0.00016482,2]
[323267836,1713859531215,-1578.09578874,0.00016482,2]
[323267837,1713859531235,-7866.94121737,0.00016482,2]
[323267838,1713859531255,-187.28344922,0.00016483,2]
[323267839,1713859531275,-1090.52068603,0.00016483,2]
[323267840,1713859531297,-474.79230604,0.00016483,2]
[323267841,1713859531318,-468.44380318,0.00016484,2]
[323267842,1713859531339,-1955.3744156,0.00016485,2]
[323267843,1713859531359,-217.60919447,0.00016598,2]
[323267844,1713859531379,-154.82968734,0.00017471,2]
[323267845,1713859531407,-154.82968734,0.00017472,2]
[323267846,1713859531427,-539.84959505,0.00017472,2]
[323267847,1713859531446,-2080.27704218,0.00017472,2]
[323267853,1713859748352,-300.0,0.00014799,2]
[323267854,1713859748372,-207.89139513,0.000148,2]
[323267855,1713859748394,-24900.0,0.00014801,2]
[323267856,1713859748413,-2775.48792824,0.00015,2]
[323267857,1713859748432,-2623.97456043,0.00015795,2]
[323267858,1713859748452,-661.09767035,0.00015795,2]
[323267859,1713859748471,-1311.74164115,0.00015795,2]
[323267860,1713859748491,-408.87824963,0.00015796,2]
[323267861,1713859748510,-628.221272,0.00015796,2]
[323267862,1713859748529,-162.02240911,0.00015796,2]
[323267863,1713859748549,-308.49906714,0.00015796,2]
[323267864,1713859748569,-1090.52068603,0.00015796,2]
[323267865,1713859748591,-300.0,0.00015796,2]
[323267866,1713859748610,-459.70738052,0.00015797,2]
[323267867,1713859748630,-154.82968734,0.00015797,2]
[323267868,1713859748649,-673.55445774,0.00015797,2]
[323267869,1713859748668,-154.82968734,0.00015797,2]
[323267870,1713859748689,-468.44380318,0.00015797,2]
[323267871,1713859748708,-247.22010741,0.00015797,2]
[323267872,1713859748729,-701.94771615,0.00015797,2]
[323267873,1713859748749,-154.82968734,0.00015798,2]
[323267874,1713859748768,-474.79230604,0.00015798,2]
[323267875,1713859748788,-5801.77357762,0.00015799,2]
[323267876,1713859748807,-154.82968734,0.00015799,2]
[323267877,1713859748826,-2587.76784421,0.000158,2]
[323267878,1713859748846,-59159.66057733,0.000158,2]
[323267879,1713859748865,-72560.09039098,0.000158,2]
[323267880,1713859748885,-1578.09578874,0.00015801,2]
[323267881,1713859749015,-154.82968734,0.00015801,2]
[323267882,1713859749038,-1490.32391025,0.00015801,2]
[323267883,1713859749059,-187.28344922,0.00015802,2]
[323267884,1713859749081,-623.76983629,0.00015803,2]
[323267885,1713859749101,-212.06825711,0.00015805,2]
[323267886,1713859749121,-362.01061268,0.00015806,2]
[323267887,1713859749141,-698.655951,0.00015813,2]
[323267888,1713859749162,-420.0,0.00016201,2]
[323267889,1713859749183,-166.56454622,0.00016377,2]
[323267890,1713859749204,-836.16500477,0.0001638,2]
[323267891,1713859749226,-272.57129579,0.000165,2]
[323267892,1713859749245,-166.5645462,0.00016632,2]
[323267893,1713859749272,-836.16500477,0.00016644,2]
[323267894,1713859749294,-166.5645462,0.00016887,2]
[323267895,1713859749330,-836.16500477,0.00016907,2]
[323267896,1713859749352,-166.5645462,0.00017142,2]
[323267897,1713859749371,-836.16500477,0.00017171,2]
[323267898,1713859749391,-420.0,0.00017376,2]
[323267899,1713859749412,-166.5645462,0.00017397,2]
[323267900,1713859749432,-836.16500477,0.00017434,2]
[323267901,1713859749453,-4940.7133459,0.00017472,2]
[323267902,1713859749473,-210.90317828,0.00017472,2]
[323267903,1713859749496,-539.42455097,0.00017472,2]
[323267904,1713859749516,-66282.12857937,0.00017472,2]
[323267905,1713859749550,-66282.12857937,0.00017472,2]
[323267906,1713859749571,-26952.82138307,0.00017472,2]
[323267907,1713859750465,-1878.1368462,0.00014798,2]
[323267908,1713859750487,-18735.7378838,0.00017472,2]
[323267909,1713859763196,-187.28344922,0.00014798,2]
[323267910,1713859763216,-2099.47208497,0.00015,2]
[323267911,1713859763347,-72560.09039098,0.00017471,2]
[323267912,1713859763367,-2587.76784421,0.00017471,2]
[323267913,1713859763386,-2775.48792824,0.00017471,2]
[323267914,1713859763405,-20593.5693125,0.00017472,2]
[323267915,1713859763425,-628.221272,0.00017478,2]
[323267916,1713859763445,-154.829687,0.00017494,2]
[323267917,1713859763464,-250.87439892,0.00017495,2]
[323267918,1713859763484,-407.68630049,0.00017495,2]
[323267919,1713859763503,-344.43188625,0.00017495,2]
[323267920,1713859763523,-154.82968734,0.00017495,2]
[323267921,1713859763543,-672.7681383,0.00017495,2]
[323267922,1713859763562,-155.21653104,0.00017495,2]
[323267923,1713859763584,-2232.30389461,0.00017495,2]
[323267924,1713859771118,-1550.76359454,0.00014999,2]
[323267925,1713859771137,-3192.47258039,0.00017495,2]
[323267926,1713859771157,-186.73230025,0.00017495,2]
[323267927,1713859771176,-204.02005127,0.00017495,2]
[323267928,1713859771197,-426.8148149,0.00017495,2]
[323267929,1713859771217,-408.87824963,0.00017495,2]
[323267930,1713859771237,-533.84168879,0.00017495,2]
[323267931,1713859771260,-560.47283477,0.00017495,2]
[323267932,1713859771280,-558.93588444,0.00017495,2]
[323267933,1713859771409,-329.8363815,0.00017495,2]
[323267934,1713859771430,-247.22010741,0.00017495,2]
[323267935,1713859771451,-1490.32391025,0.00017495,2]
[323267936,1713859771470,-1086.99270529,0.00017495,2]
[323267937,1713859771489,-308.49906714,0.00017495,2]
[323267938,1713859771509,-1311.74164115,0.00017495,2]
[323267939,1713859771528,-564.17079087,0.00017495,2]
[323267940,1713859771550,-179.74884066,0.00017495,2]
[323267941,1713859771569,-540.07871178,0.00017495,2]
[323267942,1713859771590,-272.57129579,0.00017495,2]
[323267943,1713859771608,-232.68351839,0.00017495,2]
[323267944,1713859771627,-155.18001163,0.00017496,2]
[323267945,1713859771649,-1697.79988894,0.00017496,2]
[323267946,1713859771671,-10865.95335772,0.00017496,2]
[323268014,1713859831893,-1675.82446385,0.00016506,2]
[323268015,1713859831903,-946.0712257,0.00016507,2]
[323268016,1713859831912,-300.0,0.00017471,2]
[323268017,1713859831921,-300.0,0.00017471,2]
[323268018,1713859831930,-2639.6021552,0.00017471,2]
[323268097,1713859837925,-344.43188625,0.00016505,2]
[323268111,1713859837934,-4933.66577357,0.00017371,2]
[323268113,1713859838052,-72560.09039098,0.0001747,2]
[323268115,1713859838062,-56520.05842213,0.00017471,2]
[323268117,1713859838071,-19184.99388325,0.00017472,2]
[323268119,1713859838080,-155.65738891,0.00017478,2]
[323268121,1713859838089,-314.22240341,0.00017493,2]
[323268123,1713859838098,-623.53234901,0.00017493,2]
[323268124,1713859838108,-204.76586331,0.00017493,2]
[323268127,1713859838118,-2772.54310434,0.00017495,2]
[323268129,1713859838131,-2099.47208497,0.00017495,2]
[323268131,1713859838140,-504.56251328,0.00017495,2]
[323268133,1713859838148,-548.9738825,0.00017495,2]
[323268135,1713859838157,-1550.19478705,0.00017495,2]
[323268137,1713859838166,-754.59398733,0.00017495,2]
[323268139,1713859838175,-205.74998851,0.00017495,2]
[323268141,1713859838184,-288.70955776,0.00017495,2]
[323268143,1713859838193,-308.49906714,0.00017495,2]
[323268145,1713859838202,-1490.32391025,0.00017495,2]
[323268147,1713859838211,-155.02148443,0.00017497,2]
[323268149,1713859838221,-265.31068528,0.00017497,2]
[323268151,1713859838230,-155.35152652,0.00017497,2]
[323268153,1713859838240,-156.3171088,0.00017497,2]
[323268155,1713859838250,-225.80801492,0.00017497,2]
[323268157,1713859838260,-302.89784793,0.00017497,2]
[323268159,1713859838269,-1548.0245077,0.00017497,2]
[323268161,1713859838279,-291.9508022,0.00017497,2]
[323268163,1713859838288,-156.31235909,0.00017497,2]
[323268165,1713859838298,-194.13687731,0.00017497,2]
[323268167,1713859838307,-155.00091065,0.00017497,2]
[323268169,1713859838315,-155.32129891,0.00017497,2]
[323268171,1713859838325,-1688.30299591,0.00017497,2]
[323268173,1713859838334,-276.69305491,0.00017497,2]
[323268175,1713859838343,-127372.49756683,0.00017497,2]
[323268177,1713859838353,-167.61837529,0.00017497,2]
[323268179,1713859838362,-155.10461655,0.00017497,2]
[323268181,1713859838371,-197.607947,0.00017497,2]
[323268183,1713859838381,-234.29254353,0.00017498,2]
[323268185,1713859838390,-155.47398354,0.00017498,2]
[323268187,1713859838399,-154.95418533,0.00017498,2]
[323268189,1713859838408,-239.7022471,0.00017498,2]
[323268191,1713859838417,-300.05828581,0.00017498,2]
[323268193,1713859838426,-154.99044524,0.00017498,2]
[323268195,1713859838435,-305.02639978,0.00017498,2]
[323268196,1713859838445,-172.3190033,0.00017498,2]
[323268198,1713859838456,-158.98533641,0.00017498,2]
[323268201,1713859838466,-200.0,0.00017498,2]
[323268203,1713859838475,-304.17910524,0.00017498,2]
[323268205,1713859838484,-199999.999999,0.000175,2]
[323268207,1713859838492,-12610.71640316,0.00017534,2]
[323268208,1713859838501,-15512.8961113,0.00017638,2]
[323268211,1713859838511,-1364.66318969,0.00018,7]
[323268212,1713859838520,-206.88595551,0.00018497,2]
[323268215,1713859838529,-156.21791875,0.00018497,2]
[323268216,1713859838538,-214.55189169,0.00018497,2]
[323268218,1713859838547,-603.3578092,0.000185,2]
[323268221,1713859838557,-200.92339208,0.00018887,2]
[323268222,1713859838567,-188.81822926,0.00018948,2]
[323268224,1713859838576,-18411.15674293,0.00018948,2]
[323268226,1713859838586,-189.19295912,0.0001897,2]
[323268228,1713859838596,-674.43877435,0.00018998,2]
[323268230,1713859838606,-656.98368851,0.00018998,2]
[323268232,1713859838616,-283.38557575,0.00018998,2]
[323268234,1713859838625,-157.19474891,0.00018998,2]
[323268236,1713859838635,-199.44025601,0.00018998,2]
[323268238,1713859838644,-205.98680094,0.00018998,2]
[323268240,1713859838653,-158.16815901,0.00018998,2]
[323268242,1713859838663,-173.81104632,0.00019,2]
[323268243,1713859838672,-420.0,0.00019073,2]
[323268244,1713859838680,-420.69010907,0.00019178,2]
[323268245,1713859838690,-185.77754814,0.00019178,2]
[323268246,1713859838699,-500.0,0.00019178,2]
[323268247,1713859838708,-500.0,0.00019178,2]
[323268248,1713859838718,-461.92467003,0.00019178,2]
[323268249,1713859838727,-500.0,0.00019178,2]
[323268250,1713859838736,-500.0,0.00019178,2]
[323268251,1713859838745,-500.0,0.00019178,2]
[323268252,1713859838755,-500.0,0.00019178,2]
[323268253,1713859838764,-346.10455748,0.00019178,2]
[323268254,1713859838773,-500.0,0.00019178,2]
[323268255,1713859838782,-253.55997539,0.00019178,2]
[323268256,1713859838791,-500.0,0.00019178,2]
[323268257,1713859838799,-500.0,0.00019178,2]
[323268258,1713859838808,-500.0,0.00019178,2]
[323268259,1713859838817,-500.0,0.00019178,2]
[323268260,1713859838826,-500.0,0.00019178,2]
[323268261,1713859838835,-500.0,0.00019178,2]
[323268262,1713859838844,-500.0,0.00019178,2]
[323268263,1713859838853,-500.0,0.00019178,2]
[323268264,1713859838862,-500.0,0.00019178,2]
[323268265,1713859838872,-500.0,0.00019178,2]
[323268267,1713859838882,-500.0,0.00019178,2]
[323268268,1713859838891,-500.0,0.00019178,2]
[323268269,1713859838900,-500.0,0.00019178,2]
[323268270,1713859838908,-553.52659239,0.00019178,2]
[323268272,1713859838918,-304.70237379,0.00019178,2]
[323268274,1713859838927,-500.0,0.00019178,2]
[323268276,1713859838936,-500.0,0.00019178,2]
[323268278,1713859838945,-500.0,0.00019178,2]
[323268280,1713859838954,-500.0,0.00019178,2]
[323268282,1713859838963,-500.0,0.00019178,2]
[323268284,1713859838972,-500.0,0.00019178,2]
[323268286,1713859838981,-500.0,0.00019178,2]
[323268288,1713859838990,-500.0,0.00019178,2]
[323268290,1713859838999,-500.0,0.00019178,2]
[323268292,1713859839008,-500.0,0.00019178,2]
[323268294,1713859839018,-484.4036651,0.00019178,2]
[323268296,1713859839027,-599.3528015,0.00019178,2]
[323268298,1713859839040,-500.0,0.00019178,2]
[323268300,1713859839049,-197.96771572,0.00019178,2]
[323268302,1713859839058,-499.99999999,0.00019178,2]
[323268304,1713859839068,-169.422191,0.00019178,2]
[323268306,1713859839078,-165.341426,0.00019178,2]
[323268308,1713859839087,-420.0,0.00019218,2]
[323268310,1713859839097,-154.82968734,0.0001964,2]
[323268312,1713859839108,-3241.00657195,0.000199,2]
[323268314,1713859839117,-1546.17999494,0.00019999,2]
[323268316,1713859839126,-319.72058798,0.0002,2]
[323268318,1713859839136,-1442.68762834,0.0002,2]